[Event "Live Chess"]
[Site "Chess.com"]
[Date "2024.06.02"]
[Round "-"]
[White "Ksenia_2013"]
[Black "bobby_jamesFischer86"]
[Result "0-1"]
[WhiteElo "967"]
[BlackElo "1634"]
[TimeControl "300"]
[EndTime "5:57:33 PDT"]
[Termination "bobby_jamesFischer86 won by checkmate"]

1. e4 {[%clk 0:04:58.3]} 1... c5 {[%clk 0:04:55.2]} 2. Bc4 {[%clk 0:04:55.9]}
2... e6 {[%clk 0:04:53.9]} 3. Nf3 {[%clk 0:04:54.7]} 3... d5 {[%clk 0:04:52.2]}
4. exd5 {[%clk 0:04:52.9]} 4... exd5 {[%clk 0:04:51.8]} 5. Bxd5 {[%clk
0:04:50.6]} 5... Qxd5 {[%clk 0:04:49.7]} 6. Nc3 {[%clk 0:04:49.4]} 6... Qd8
{[%clk 0:04:49.1]} 7. O-O {[%clk 0:04:47.9]} 7... Nf6 {[%clk 0:04:47.7]} 8. Qe1+
{[%clk 0:04:46.7]} 8... Be7 {[%clk 0:04:47.1]} 9. d3 {[%clk 0:04:41.2]} 9... O-O
{[%clk 0:04:45.3]} 10. Ng5 {[%clk 0:04:37.4]} 10... h6 {[%clk 0:04:43]} 11. Nh3
{[%clk 0:04:31.1]} 11... Bxh3 {[%clk 0:04:40.5]} 12. gxh3 {[%clk 0:04:25.2]}
12... Bd6 {[%clk 0:04:38.4]} 13. Bxh6 {[%clk 0:04:19.2]} 13... gxh6 {[%clk
0:04:35]} 14. Qe3 {[%clk 0:04:16.2]} 14... Kh7 {[%clk 0:04:33.7]} 15. Ne4 {[%clk
0:04:13.2]} 15... Nxe4 {[%clk 0:04:28.2]} 16. Qxe4+ {[%clk 0:04:11.6]} 16... f5
{[%clk 0:04:26.6]} 17. Qxb7+ {[%clk 0:04:09.4]} 17... Qc7 {[%clk 0:04:12.5]} 18.
Qxa8 {[%clk 0:04:06.7]} 18... Rg8+ {[%clk 0:04:05.2]} 19. Kh1 {[%clk 0:04:04.2]}
19... Qc6+ {[%clk 0:04:03.9]} 20. Qxc6 {[%clk 0:03:57.7]} 20... Nxc6 {[%clk
0:04:02.6]} 21. Rg1 {[%clk 0:03:54.3]} 21... Rxg1+ {[%clk 0:03:55.2]} 22. Rxg1
{[%clk 0:03:52.2]} 22... Nd4 {[%clk 0:03:53.6]} 23. c3 {[%clk 0:03:50.3]} 23...
Nf3 {[%clk 0:03:47.3]} 24. Rd1 {[%clk 0:03:37.8]} 24... Nxh2 {[%clk 0:03:42.8]}
25. d4 {[%clk 0:03:35.4]} 25... Nf3 {[%clk 0:03:29.8]} 26. dxc5 {[%clk
0:03:31.6]} 26... Bxc5 {[%clk 0:03:28.8]} 27. Rd7+ {[%clk 0:03:29.7]} 27... Kg6
{[%clk 0:03:26.8]} 28. Rc7 {[%clk 0:03:26.5]} 28... Bxf2 {[%clk 0:03:20.9]} 29.
Rc6+ {[%clk 0:03:20.9]} 29... Kg5 {[%clk 0:03:19.4]} 30. Rc4 {[%clk 0:03:16.5]}
30... f4 {[%clk 0:03:11.9]} 31. Rc8 {[%clk 0:03:13]} 31... Be3 {[%clk
0:03:09.8]} 32. Rh8 {[%clk 0:03:10]} 32... h5 {[%clk 0:03:07.8]} 33. Rg8+ {[%clk
0:03:08.2]} 33... Kh4 {[%clk 0:03:07]} 34. Kg2 {[%clk 0:03:05.5]} 34... Ng5
{[%clk 0:02:57.1]} 35. b4 {[%clk 0:03:00]} 35... f3+ {[%clk 0:02:55.1]} 36. Kf1
{[%clk 0:02:57.1]} 36... Nxh3 {[%clk 0:02:49.7]} 37. c4 {[%clk 0:02:51.8]} 37...
Nf4 {[%clk 0:02:37.5]} 38. c5 {[%clk 0:02:50]} 38... Nd5 {[%clk 0:02:25.6]} 39.
c6 {[%clk 0:02:47.7]} 39... Bb6 {[%clk 0:02:20.8]} 40. Rd8 {[%clk 0:02:43.3]}
40... Nxb4 {[%clk 0:02:16.7]} 41. Rf8 {[%clk 0:02:37.1]} 41... f2 {[%clk
0:02:13.4]} 42. Rf4+ {[%clk 0:02:33.8]} 42... Kg3 {[%clk 0:02:04]} 43. Rxb4
{[%clk 0:02:32.2]} 43... Ba5 {[%clk 0:01:54.1]} 44. Rb2 {[%clk 0:02:28]} 44...
h4 {[%clk 0:01:50.4]} 45. Rxf2 {[%clk 0:02:25.4]} 45... h3 {[%clk 0:01:48]} 46.
Kg1 {[%clk 0:02:21.7]} 46... Bb6 {[%clk 0:01:46.6]} 47. c7 {[%clk 0:02:16.7]}
47... Bxc7 {[%clk 0:01:42.1]} 48. Rh2 {[%clk 0:02:13.2]} 48... Kh4 {[%clk
0:01:18.8]} 49. a4 {[%clk 0:01:59.1]} 49... a5 {[%clk 0:01:14.1]} 50. Kh1 {[%clk
0:01:55.7]} 50... Bxh2 {[%clk 0:01:07.7]} 51. Kxh2 {[%clk 0:01:54.1]} 51... Kg4
{[%clk 0:01:07.1]} 52. Kg1 {[%clk 0:01:51.6]} 52... Kf4 {[%clk 0:01:05.2]} 53.
Kh2 {[%clk 0:01:49.2]} 53... Ke4 {[%clk 0:01:04.8]} 54. Kxh3 {[%clk 0:01:48.3]}
54... Kd4 {[%clk 0:01:04.3]} 55. Kg3 {[%clk 0:01:47.6]} 55... Kc4 {[%clk
0:01:04]} 56. Kf2 {[%clk 0:01:47]} 56... Kb4 {[%clk 0:01:02.6]} 57. Ke2 {[%clk
0:01:46.3]} 57... Kxa4 {[%clk 0:01:01.8]} 58. Kd2 {[%clk 0:01:45.6]} 58... Kb3
{[%clk 0:01:01.3]} 59. Kc1 {[%clk 0:01:44.6]} 59... Ka2 {[%clk 0:01:00.9]} 60.
Kc2 {[%clk 0:01:42.1]} 60... a4 {[%clk 0:01:00.5]} 61. Kc3 {[%clk 0:01:39.9]}
61... a3 {[%clk 0:00:54.9]} 62. Kb4 {[%clk 0:01:38.5]} 62... Kb2 {[%clk
0:00:53.4]} 63. Ka4 {[%clk 0:01:37.2]} 63... a2 {[%clk 0:00:52.5]} 64. Kb4
{[%clk 0:01:35.6]} 64... a1=Q {[%clk 0:00:51.5]} 65. Kb5 {[%clk 0:01:34]} 65...
Qa8 {[%clk 0:00:51]} 66. Kb6 {[%clk 0:01:32.5]} 66... Qe4 {[%clk 0:00:50.5]} 67.
Ka6 {[%clk 0:01:30.9]} 67... Kc3 {[%clk 0:00:50]} 68. Ka7 {[%clk 0:01:29.4]}
68... Kb4 {[%clk 0:00:49.6]} 69. Ka6 {[%clk 0:01:28]} 69... Qc6+ {[%clk
0:00:47.5]} 70. Ka7 {[%clk 0:01:26.7]} 70... Qb5 {[%clk 0:00:46.4]} 71. Ka8
{[%clk 0:01:25.2]} 71... Kc5 {[%clk 0:00:46]} 72. Ka7 {[%clk 0:01:23.8]} 72...
Kc6 {[%clk 0:00:45.6]} 73. Ka8 {[%clk 0:01:22.5]} 73... Qb7# {[%clk 0:00:45.2]}
0-1

[Event "Live Chess"]
[Site "Chess.com"]
[Date "2024.06.02"]
[Round "-"]
[White "AlanBstard10"]
[Black "Andriy_Yaremovych"]
[Result "0-1"]
[WhiteElo "1227"]
[BlackElo "1665"]
[TimeControl "300"]
[EndTime "5:57:37 PDT"]
[Termination "Andriy_Yaremovych won by checkmate"]

1. b4 {[%clk 0:04:58.1]} 1... Nf6 {[%clk 0:04:58.4]} 2. Bb2 {[%clk 0:04:57.6]}
2... g6 {[%clk 0:04:57.5]} 3. a3 {[%clk 0:04:57.2]} 3... Bg7 {[%clk 0:04:56.6]}
4. e3 {[%clk 0:04:56.1]} 4... b6 {[%clk 0:04:55.9]} 5. Be2 {[%clk 0:04:55.5]}
5... Bb7 {[%clk 0:04:55]} 6. Nf3 {[%clk 0:04:54.8]} 6... Nc6 {[%clk 0:04:53.8]}
7. O-O {[%clk 0:04:54.2]} 7... e6 {[%clk 0:04:53.1]} 8. Nc3 {[%clk 0:04:50.6]}
8... Qe7 {[%clk 0:04:52.2]} 9. Rb1 {[%clk 0:04:47.2]} 9... O-O-O {[%clk
0:04:51]} 10. d4 {[%clk 0:04:44.4]} 10... d5 {[%clk 0:04:49.8]} 11. Bb5 {[%clk
0:04:39.1]} 11... Kb8 {[%clk 0:04:47.9]} 12. Bxc6 {[%clk 0:04:38.1]} 12... Bxc6
{[%clk 0:04:46.9]} 13. b5 {[%clk 0:04:36.3]} 13... Bb7 {[%clk 0:04:46]} 14. a4
{[%clk 0:04:35]} 14... Nd7 {[%clk 0:04:45]} 15. Qe2 {[%clk 0:04:33]} 15... f6
{[%clk 0:04:43.9]} 16. Na2 {[%clk 0:04:18]} 16... h5 {[%clk 0:04:41.1]} 17. Bc3
{[%clk 0:04:16.1]} 17... g5 {[%clk 0:04:38.9]} 18. Bb4 {[%clk 0:04:15]} 18...
Qf7 {[%clk 0:04:34.9]} 19. c4 {[%clk 0:04:02.3]} 19... dxc4 {[%clk 0:04:30.6]}
20. Qxc4 {[%clk 0:04:00.6]} 20... g4 {[%clk 0:04:24.9]} 21. Nd2 {[%clk
0:03:45.4]} 21... Rc8 {[%clk 0:04:22.9]} 22. f3 {[%clk 0:03:39.5]} 22... f5
{[%clk 0:04:19.8]} 23. fxg4 {[%clk 0:03:37.8]} 23... hxg4 {[%clk 0:04:18.7]} 24.
g3 {[%clk 0:03:36]} 24... Bh6 {[%clk 0:04:14.9]} 25. Qd3 {[%clk 0:03:27.2]}
25... Qg6 {[%clk 0:04:09.6]} 26. Nc3 {[%clk 0:03:22.8]} 26... Qh5 {[%clk
0:04:04.8]} 27. Rf2 {[%clk 0:03:18]} 27... Nf6 {[%clk 0:03:54.8]} 28. a5 {[%clk
0:03:11.4]} 28... Nd5 {[%clk 0:03:53.2]} 29. Nxd5 {[%clk 0:03:09.6]} 29... Bxd5
{[%clk 0:03:51.5]} 30. axb6 {[%clk 0:03:05.9]} 30... cxb6 {[%clk 0:03:50.4]} 31.
Bd6+ {[%clk 0:02:57.7]} 31... Kb7 {[%clk 0:03:49.2]} 32. Bf4 {[%clk 0:02:51.4]}
32... Bxf4 {[%clk 0:03:47.3]} 33. exf4 {[%clk 0:02:50.3]} 33... Rc7 {[%clk
0:03:40.3]} 34. Ra1 {[%clk 0:02:32.2]} 34... Kb8 {[%clk 0:03:36]} 35. Qa3 {[%clk
0:02:27.5]} 35... Qe8 {[%clk 0:03:27.7]} 36. Qb4 {[%clk 0:02:20]} 36... Qd7
{[%clk 0:03:25.3]} 37. Nb3 {[%clk 0:02:11.2]} 37... Bb7 {[%clk 0:03:23.9]} 38.
Qa3 {[%clk 0:01:55.9]} 38... Bd5 {[%clk 0:03:12.2]} 39. Nd2 {[%clk 0:01:41.8]}
39... Bb7 {[%clk 0:03:09.8]} 40. Nb3 {[%clk 0:01:38.8]} 40... Ba8 {[%clk
0:03:07.7]} 41. Nd2 {[%clk 0:01:32.4]} 41... Qd5 {[%clk 0:03:04.9]} 42. Kf1
{[%clk 0:01:08.6]} 42... Qxd4 {[%clk 0:02:58.5]} 43. Rc1 {[%clk 0:00:58.1]}
43... Rxc1+ {[%clk 0:02:54.2]} 44. Qxc1 {[%clk 0:00:56.1]} 44... Rc8 {[%clk
0:02:48.4]} 45. Qe1 {[%clk 0:00:49.7]} 45... Qd3+ {[%clk 0:02:43]} 46. Kg1
{[%clk 0:00:44.5]} 46... Qxb5 {[%clk 0:02:40.3]} 47. Qxe6 {[%clk 0:00:37.9]}
47... Rc1+ {[%clk 0:02:38.7]} 48. Rf1 {[%clk 0:00:33.5]} 48... Rxf1+ {[%clk
0:02:35.5]} 49. Nxf1 {[%clk 0:00:32.5]} 49... Qc5+ {[%clk 0:02:34.4]} 50. Qe3
{[%clk 0:00:28.6]} 50... Qc6 {[%clk 0:02:29.9]} 51. Qe7 {[%clk 0:00:21.3]} 51...
Qg2# {[%clk 0:02:27]} 0-1

[Event "Live Chess"]
[Site "Chess.com"]
[Date "2024.06.02"]
[Round "-"]
[White "Victor_Bondar"]
[Black "IgorSchukin"]
[Result "0-1"]
[WhiteElo "1470"]
[BlackElo "1779"]
[TimeControl "300"]
[EndTime "5:58:16 PDT"]
[Termination "IgorSchukin won by checkmate"]

1. e4 {[%clk 0:04:56.9]} 1... c5 {[%clk 0:04:58.8]} 2. c3 {[%clk 0:04:55]} 2...
Nc6 {[%clk 0:04:58.3]} 3. d4 {[%clk 0:04:53.9]} 3... cxd4 {[%clk 0:04:57.6]} 4.
cxd4 {[%clk 0:04:53]} 4... d5 {[%clk 0:04:57.2]} 5. e5 {[%clk 0:04:51.7]} 5...
Bf5 {[%clk 0:04:55.8]} 6. Nf3 {[%clk 0:04:49.1]} 6... e6 {[%clk 0:04:54.9]} 7.
a3 {[%clk 0:04:47.9]} 7... h6 {[%clk 0:04:52.3]} 8. Bd3 {[%clk 0:04:46.8]} 8...
Nge7 {[%clk 0:04:50]} 9. b4 {[%clk 0:04:35.1]} 9... a6 {[%clk 0:04:48.5]} 10.
Bb2 {[%clk 0:04:31.5]} 10... Rc8 {[%clk 0:04:42.5]} 11. Nbd2 {[%clk 0:04:16.9]}
11... Bxd3 {[%clk 0:04:40.8]} 12. Nb3 {[%clk 0:04:14.6]} 12... Bc4 {[%clk
0:04:39]} 13. Nc5 {[%clk 0:04:12.7]} 13... b6 {[%clk 0:04:32.3]} 14. Nb3 {[%clk
0:03:59.1]} 14... Bxb3 {[%clk 0:04:30.6]} 15. Qxb3 {[%clk 0:03:57.1]} 15... Nf5
{[%clk 0:04:28.5]} 16. O-O {[%clk 0:03:54.4]} 16... Be7 {[%clk 0:04:25.6]} 17.
g4 {[%clk 0:03:51.6]} 17... Nh4 {[%clk 0:04:22.2]} 18. Nxh4 {[%clk 0:03:39.7]}
18... Bxh4 {[%clk 0:04:20.4]} 19. Qe3 {[%clk 0:03:20.6]} 19... O-O {[%clk
0:04:13.8]} 20. f4 {[%clk 0:03:19.5]} 20... f5 {[%clk 0:04:06.5]} 21. Qh3 {[%clk
0:03:02.1]} 21... fxg4 {[%clk 0:03:35.8]} 22. Qxg4 {[%clk 0:02:59.7]} 22... Rf5
{[%clk 0:03:34.3]} 23. Rf3 {[%clk 0:02:51.9]} 23... Kh7 {[%clk 0:03:25.5]} 24.
Rh3 {[%clk 0:02:45.5]} 24... Be7 {[%clk 0:03:23.2]} 25. Rg3 {[%clk 0:02:26.7]}
25... g5 {[%clk 0:03:17.9]} 26. Rf1 {[%clk 0:02:07.6]} 26... Qf8 {[%clk
0:03:06.3]} 27. Rgf3 {[%clk 0:01:58.4]} 27... gxf4 {[%clk 0:02:52]} 28. Kh1
{[%clk 0:01:46.6]} 28... Qf7 {[%clk 0:02:29.2]} 29. Rxf4 {[%clk 0:01:43.2]}
29... Rg8 {[%clk 0:02:26.5]} 30. Qf3 {[%clk 0:01:30.9]} 30... Rxf4 {[%clk
0:02:18.4]} 31. Qxf4 {[%clk 0:01:29.6]} 31... Qxf4 {[%clk 0:02:11.1]} 32. Rxf4
{[%clk 0:01:28.1]} 32... Bg5 {[%clk 0:02:06.5]} 33. Rf7+ {[%clk 0:01:22]} 33...
Rg7 {[%clk 0:02:05.2]} 34. Rf8 {[%clk 0:01:17]} 34... Be3 {[%clk 0:02:01.8]} 35.
h4 {[%clk 0:01:13.7]} 35... Bxd4 {[%clk 0:01:56.6]} 36. Bxd4 {[%clk 0:01:09.4]}
36... Nxd4 {[%clk 0:01:55.5]} 37. Rb8 {[%clk 0:01:03.3]} 37... Nf3 {[%clk
0:01:53.6]} 38. Rxb6 {[%clk 0:00:52]} 38... Rg1# {[%clk 0:01:51.5]} 0-1

[Event "Live Chess"]
[Site "Chess.com"]
[Date "2024.06.02"]
[Round "-"]
[White "oscalik"]
[Black "SavagePawn7"]
[Result "1-0"]
[WhiteElo "2240"]
[BlackElo "678"]
[TimeControl "300"]
[EndTime "5:58:17 PDT"]
[Termination "oscalik won by resignation"]

1. e4 {[%clk 0:04:57.2]} 1... d5 {[%clk 0:04:58]} 2. exd5 {[%clk 0:04:56]} 2...
Nf6 {[%clk 0:04:56.2]} 3. Nf3 {[%clk 0:04:54.7]} 3... Nxd5 {[%clk 0:04:54.1]} 4.
d4 {[%clk 0:04:52.6]} 4... g6 {[%clk 0:04:52.1]} 5. c4 {[%clk 0:04:50.9]} 5...
Nb6 {[%clk 0:04:50]} 6. Nc3 {[%clk 0:04:49.1]} 6... Bg4 {[%clk 0:04:40.5]} 7. c5
{[%clk 0:04:43.7]} 7... N6d7 {[%clk 0:04:28.6]} 8. Bc4 {[%clk 0:04:39.7]} 8...
e6 {[%clk 0:04:24]} 9. h3 {[%clk 0:04:38.1]} 9... Bxf3 {[%clk 0:04:16]} 10. Qxf3
{[%clk 0:04:38]} 10... f5 {[%clk 0:04:09.4]} 11. Bxe6 {[%clk 0:04:33]} 11... Qe7
{[%clk 0:04:00]} 12. d5 {[%clk 0:04:31.6]} 12... c6 {[%clk 0:03:54.1]} 13. O-O
{[%clk 0:04:29.6]} 13... cxd5 {[%clk 0:03:49.9]} 14. Nxd5 {[%clk 0:04:28.4]}
14... Qxc5 {[%clk 0:03:23.3]} 15. Be3 {[%clk 0:04:26.5]} 15... Qd6 {[%clk
0:03:11.9]} 16. Rfe1 {[%clk 0:04:22.4]} 16... Kd8 {[%clk 0:03:04.3]} 17. Bg5+
{[%clk 0:04:20.4]} 17... Kc8 {[%clk 0:02:51.7]} 18. Rac1+ {[%clk 0:04:18.6]}
18... Nc6 {[%clk 0:02:49.9]} 19. Nf6 {[%clk 0:04:09.8]} 19... Kc7 {[%clk
0:02:15.8]} 20. Bxd7 {[%clk 0:04:07]} 20... Be7 {[%clk 0:02:05.5]} 21. Bf4
{[%clk 0:04:01.1]} 1-0

[Event "Live Chess"]
[Site "Chess.com"]
[Date "2024.06.02"]
[Round "-"]
[White "ukraineZelensky"]
[Black "MagnersCarlsberg2870"]
[Result "0-1"]
[WhiteElo "1342"]
[BlackElo "1739"]
[TimeControl "300"]
[EndTime "5:58:26 PDT"]
[Termination "MagnersCarlsberg2870 won on time"]

1. d4 {[%clk 0:04:55.5]} 1... Nf6 {[%clk 0:04:58.3]} 2. e3 {[%clk 0:04:52.4]}
2... b6 {[%clk 0:04:56.5]} 3. c4 {[%clk 0:04:50.6]} 3... d5 {[%clk 0:04:54.4]}
4. Nc3 {[%clk 0:04:43.8]} 4... e6 {[%clk 0:04:47.6]} 5. a3 {[%clk 0:04:40.8]}
5... Bb7 {[%clk 0:04:43]} 6. Nf3 {[%clk 0:04:38]} 6... Bd6 {[%clk 0:04:39.6]} 7.
Be2 {[%clk 0:04:34.2]} 7... O-O {[%clk 0:04:38.3]} 8. O-O {[%clk 0:04:27.3]}
8... Nbd7 {[%clk 0:04:37.5]} 9. cxd5 {[%clk 0:04:24.6]} 9... exd5 {[%clk
0:04:35.7]} 10. b4 {[%clk 0:04:20]} 10... Ne4 {[%clk 0:04:32.6]} 11. Bb2 {[%clk
0:04:14.6]} 11... Qf6 {[%clk 0:04:29.7]} 12. Bd3 {[%clk 0:04:07.6]} 12... a6
{[%clk 0:04:25.7]} 13. Rb1 {[%clk 0:04:02.9]} 13... Qh6 {[%clk 0:04:22]} 14. h3
{[%clk 0:03:57]} 14... Ng5 {[%clk 0:04:13.4]} 15. Nxg5 {[%clk 0:03:41.4]} 15...
Qxg5 {[%clk 0:04:10.7]} 16. Bc1 {[%clk 0:03:37.9]} 16... Nf6 {[%clk 0:04:05.4]}
17. e4 {[%clk 0:03:34.8]} 17... Qh4 {[%clk 0:03:58.8]} 18. e5 {[%clk 0:03:29.7]}
18... Ne4 {[%clk 0:03:56]} 19. exd6 {[%clk 0:03:17.1]} 19... Nxc3 {[%clk
0:03:54.5]} 20. Qc2 {[%clk 0:03:08.7]} 20... Nxb1 {[%clk 0:03:53.1]} 21. Qxb1
{[%clk 0:03:02.3]} 21... cxd6 {[%clk 0:03:49.6]} 22. Be3 {[%clk 0:02:59.6]}
22... f5 {[%clk 0:03:40.6]} 23. Bxf5 {[%clk 0:02:51.4]} 23... Qh5 {[%clk
0:03:34]} 24. Be6+ {[%clk 0:02:40.3]} 24... Kh8 {[%clk 0:03:32.2]} 25. Bg4
{[%clk 0:02:31.8]} 25... Qh4 {[%clk 0:03:30.1]} 26. Qd1 {[%clk 0:02:19]} 26...
Bc8 {[%clk 0:03:27.3]} 27. Bxc8 {[%clk 0:02:06.4]} 27... Raxc8 {[%clk
0:03:26.2]} 28. Qb1 {[%clk 0:01:56]} 28... Rc3 {[%clk 0:03:04.6]} 29. Qb2 {[%clk
0:01:49.1]} 29... Rd3 {[%clk 0:02:48.2]} 30. Qe2 {[%clk 0:01:44.3]} 30... Rxa3
{[%clk 0:02:44.8]} 31. Qd2 {[%clk 0:01:19.1]} 31... a5 {[%clk 0:02:35.5]} 32.
bxa5 {[%clk 0:01:16.4]} 32... bxa5 {[%clk 0:02:34.5]} 33. Qb2 {[%clk 0:01:10.4]}
33... Rd3 {[%clk 0:02:30.1]} 34. Qb6 {[%clk 0:00:59.2]} 34... Qf6 {[%clk
0:02:27.9]} 35. Qxa5 {[%clk 0:00:53.9]} 35... Rxe3 {[%clk 0:02:26.9]} 36. Qb5
{[%clk 0:00:35.3]} 36... Re1 {[%clk 0:02:17.4]} 37. Qd3 {[%clk 0:00:19.3]} 37...
Rxf1+ {[%clk 0:02:15.5]} 38. Qxf1 {[%clk 0:00:17.5]} 38... Qxd4 {[%clk
0:02:14.5]} 0-1

[Event "Live Chess"]
[Site "Chess.com"]
[Date "2024.06.02"]
[Round "-"]
[White "agamilewska"]
[Black "upoe610"]
[Result "0-1"]
[WhiteElo "1769"]
[BlackElo "2130"]
[TimeControl "300"]
[EndTime "5:58:39 PDT"]
[Termination "upoe610 won by resignation"]

1. d4 {[%clk 0:04:55.1]} 1... Nf6 {[%clk 0:04:59]} 2. Nf3 {[%clk 0:04:54.3]}
2... c5 {[%clk 0:04:58]} 3. Bg5 {[%clk 0:04:53.5]} 3... d5 {[%clk 0:04:54.8]} 4.
Bxf6 {[%clk 0:04:52.2]} 4... gxf6 {[%clk 0:04:51.6]} 5. dxc5 {[%clk 0:04:51.3]}
5... e6 {[%clk 0:04:50.8]} 6. e4 {[%clk 0:04:49.1]} 6... dxe4 {[%clk 0:04:47.1]}
7. Qxd8+ {[%clk 0:04:47.2]} 7... Kxd8 {[%clk 0:04:46.1]} 8. Nfd2 {[%clk
0:04:40.6]} 8... f5 {[%clk 0:04:45.2]} 9. b4 {[%clk 0:04:36.9]} 9... Bg7 {[%clk
0:04:43.7]} 10. c3 {[%clk 0:04:35.3]} 10... Na6 {[%clk 0:04:42.2]} 11. Bxa6
{[%clk 0:04:33.7]} 11... bxa6 {[%clk 0:04:42.1]} 12. O-O {[%clk 0:04:28.5]}
12... a5 {[%clk 0:04:40.7]} 13. Rd1 {[%clk 0:04:12.8]} 13... Kc7 {[%clk
0:04:38]} 14. bxa5 {[%clk 0:04:05.3]} 14... Ba6 {[%clk 0:04:33.6]} 15. Na3
{[%clk 0:03:56.5]} 15... Be2 {[%clk 0:04:31.7]} 16. Rdc1 {[%clk 0:03:48.3]}
16... Bd3 {[%clk 0:04:31.6]} 17. Ndc4 {[%clk 0:03:42.5]} 17... Rab8 {[%clk
0:04:23.7]} 18. Nd6 {[%clk 0:03:35.2]} 18... Rb2 {[%clk 0:04:13.6]} 19. Nxf7
{[%clk 0:03:24.2]} 19... Rhb8 {[%clk 0:04:04.7]} 20. Nd6 {[%clk 0:03:22.8]}
20... Kc6 {[%clk 0:04:01.2]} 21. h3 {[%clk 0:03:15.6]} 21... Kxc5 {[%clk
0:04:00]} 22. Nf7 {[%clk 0:03:01.1]} 22... R8b7 {[%clk 0:03:57.3]} 23. Ng5
{[%clk 0:02:59.8]} 23... Kd6 {[%clk 0:03:49.6]} 24. Nxh7 {[%clk 0:02:43]} 24...
Bh6 {[%clk 0:03:43.2]} 25. Rd1 {[%clk 0:02:11]} 25... Ke5 {[%clk 0:03:40.9]} 26.
Rxd3 {[%clk 0:01:59.4]} 26... exd3 {[%clk 0:03:39.3]} 27. Nc4+ {[%clk 0:01:59]}
27... Kd5 {[%clk 0:03:34.8]} 28. Nxb2 {[%clk 0:01:58.4]} 28... Rxb2 {[%clk
0:03:33.9]} 29. Nf6+ {[%clk 0:01:54.7]} 29... Kc4 {[%clk 0:03:32.3]} 30. g3
{[%clk 0:01:38.4]} 30... Kxc3 {[%clk 0:03:28.9]} 31. f4 {[%clk 0:01:37.8]} 31...
Bg7 {[%clk 0:03:26.2]} 32. Nd7 {[%clk 0:01:36.3]} 32... Bd4+ {[%clk 0:03:25]}
33. Kf1 {[%clk 0:01:34]} 33... Rf2+ {[%clk 0:03:23.5]} 34. Ke1 {[%clk
0:01:32.9]} 34... d2+ {[%clk 0:03:22.5]} 35. Kd1 {[%clk 0:01:26.8]} 35... Rf1+
{[%clk 0:03:21.7]} 36. Ke2 {[%clk 0:01:25.9]} 36... Rxa1 {[%clk 0:03:20.6]} 0-1

[Event "Live Chess"]
[Site "Chess.com"]
[Date "2024.06.02"]
[Round "-"]
[White "friarnator"]
[Black "McCarthyStone"]
[Result "0-1"]
[WhiteElo "2210"]
[BlackElo "2480"]
[TimeControl "300"]
[EndTime "5:58:41 PDT"]
[Termination "McCarthyStone won on time"]

1. e4 {[%clk 0:04:57.5]} 1... e5 {[%clk 0:04:58.3]} 2. Nf3 {[%clk 0:04:56.1]}
2... d6 {[%clk 0:04:57.1]} 3. d4 {[%clk 0:04:54.4]} 3... exd4 {[%clk 0:04:57]}
4. Bc4 {[%clk 0:04:50.3]} 4... Be7 {[%clk 0:04:54.4]} 5. c3 {[%clk 0:04:49.1]}
5... Nf6 {[%clk 0:04:52.2]} 6. Qxd4 {[%clk 0:04:39.3]} 6... Nc6 {[%clk
0:04:50.4]} 7. Qd3 {[%clk 0:04:36.6]} 7... O-O {[%clk 0:04:42.9]} 8. O-O {[%clk
0:04:35.5]} 8... Bg4 {[%clk 0:04:35.3]} 9. Nbd2 {[%clk 0:04:30.9]} 9... Nd7
{[%clk 0:04:34.2]} 10. h3 {[%clk 0:04:10.1]} 10... Bh5 {[%clk 0:04:32]} 11. Bb3
{[%clk 0:04:04.3]} 11... Nc5 {[%clk 0:04:27.5]} 12. Qe3 {[%clk 0:03:56.9]} 12...
Nxb3 {[%clk 0:04:23.9]} 13. Nxb3 {[%clk 0:03:55]} 13... Bf6 {[%clk 0:04:19.4]}
14. Bd2 {[%clk 0:03:37.5]} 14... Re8 {[%clk 0:04:15.7]} 15. Rfe1 {[%clk
0:03:33.5]} 15... h6 {[%clk 0:04:06.9]} 16. Qd3 {[%clk 0:03:26]} 16... Bg6
{[%clk 0:04:02.1]} 17. Nbd4 {[%clk 0:03:22.1]} 17... d5 {[%clk 0:03:53.7]} 18.
Nxc6 {[%clk 0:03:03.2]} 18... bxc6 {[%clk 0:03:53.6]} 19. Qa6 {[%clk 0:02:53.7]}
19... dxe4 {[%clk 0:03:42.7]} 20. Nd4 {[%clk 0:02:39.1]} 20... Bxd4 {[%clk
0:03:14.3]} 21. cxd4 {[%clk 0:02:36.6]} 21... Qxd4 {[%clk 0:03:14.2]} 22. Bc3
{[%clk 0:02:29.6]} 22... Qb6 {[%clk 0:03:12]} 23. Qc4 {[%clk 0:02:29]} 23... Qb5
{[%clk 0:02:53.4]} 24. Qd4 {[%clk 0:02:26.9]} 24... f6 {[%clk 0:02:47.6]} 25.
Qd7 {[%clk 0:02:10.1]} 25... Qb6 {[%clk 0:02:34]} 26. Re3 {[%clk 0:01:54.2]}
26... c5 {[%clk 0:02:12.7]} 27. Rg3 {[%clk 0:01:38.2]} 27... Bf7 {[%clk
0:02:09.5]} 28. Qg4 {[%clk 0:01:17.5]} 28... g6 {[%clk 0:01:59.4]} 29. h4 {[%clk
0:01:05]} 29... Qc6 {[%clk 0:01:52.4]} 30. h5 {[%clk 0:00:55.2]} 30... g5 {[%clk
0:01:47]} 31. Rd1 {[%clk 0:00:42.8]} 31... Qe6 {[%clk 0:01:41.8]} 32. Qxe6
{[%clk 0:00:34]} 32... Bxe6 {[%clk 0:01:35.5]} 33. Bxf6 {[%clk 0:00:32]} 33...
Bxa2 {[%clk 0:01:30.4]} 34. Rd7 {[%clk 0:00:28.6]} 34... Bf7 {[%clk 0:01:28.7]}
35. Bxg5 {[%clk 0:00:17.6]} 35... hxg5 {[%clk 0:01:25.3]} 36. Rxg5+ {[%clk
0:00:17.5]} 36... Kf8 {[%clk 0:01:24.6]} 37. h6 {[%clk 0:00:16.9]} 37... Re6
{[%clk 0:01:10.5]} 38. Rf5 {[%clk 0:00:11.2]} 38... Kg8 {[%clk 0:01:03.2]} 39.
h7+ {[%clk 0:00:09.6]} 39... Kxh7 {[%clk 0:01:00.8]} 40. Rfxf7+ {[%clk
0:00:09.5]} 40... Kg6 {[%clk 0:01:00.1]} 41. g4 {[%clk 0:00:06.9]} 41... Rg8
{[%clk 0:00:58.6]} 42. Rxc7 {[%clk 0:00:06]} 42... Re5 {[%clk 0:00:55.2]} 43.
Rxa7 {[%clk 0:00:04.3]} 43... Kg5 {[%clk 0:00:54.8]} 44. Rg7+ {[%clk 0:00:03.2]}
44... Rxg7 {[%clk 0:00:54.3]} 45. Rxg7+ {[%clk 0:00:02.9]} 45... Kf4 {[%clk
0:00:54.2]} 46. Rc7 {[%clk 0:00:02.8]} 46... Kxg4 {[%clk 0:00:53.2]} 47. Rg7+
{[%clk 0:00:01.7]} 47... Kf3 {[%clk 0:00:52.6]} 48. Rf7+ {[%clk 0:00:01.6]}
48... Ke2 {[%clk 0:00:52.2]} 49. Rc7 {[%clk 0:00:00.6]} 49... Kd3 {[%clk
0:00:51.7]} 0-1